bitfinex-derivatives/quotes_BTCF0:USTF0_20250207
["timestamp","ask_amount","ask_price","bid_price","bid_amount"]
[1738971232387,0.20763681,96380.0,96373.0,0.3608]
[1738971233707,0.2074899,96376.0,96373.0,0.3608]
[1738971234285,0.00015501,96380.0,96373.0,0.3608]
[1738971234492,0.207494,96374.0,96368.0,0.0385]
[1738971234790,0.3608,96378.0,96368.0,0.0385]
[1738971234991,0.3608,96378.0,96367.0,0.36235646]
[1738971235193,0.2074968,96373.0,96367.0,0.36235646]
[1738971235380,0.3608,96378.0,96367.0,0.36235646]
[1738971236285,0.2075005,96371.0,96367.0,0.36235646]
[1738971237796,0.1182,96379.0,96367.0,0.36235646]
[1738971237992,0.1182,96379.0,96368.0,0.2075065]
[1738971238196,0.2074947,96374.0,96368.0,0.2075065]
[1738971239090,0.2074978,96373.0,96368.0,0.2075065]
[1738971240091,0.00015501,96380.0,96367.0,0.36235646]
[1738971240394,0.00015501,96380.0,96379.0,0.2074833]
[1738971242085,0.0234063,96400.0,96376.0,0.1133]
[1738971242286,0.2308465,96400.0,96390.0,0.2074582]
[1738971242689,0.14804057,96400.0,96385.0,0.3608]
[1738971242891,0.207445,96397.0,96386.0,0.207468]
[1738971243190,0.14804057,96400.0,96388.0,0.2074629]
[1738971243790,0.2074406,96399.0,96388.0,0.2074629]
[1738971243998,0.2074486,96396.0,96385.0,0.3608]
[1738971244211,0.14804057,96400.0,96386.0,0.001]
[1738971244212,0.2074625,96389.0,96386.0,0.001]
[1738971244789,0.2074625,96389.0,96388.0,0.002]
[1738971245401,0.2074625,96389.0,96388.0,0.001]
[1738971246994,0.2074625,96389.0,96388.0,0.002]
[1738971247499,0.2074625,96389.0,96388.0,0.001]
[1738971248500,0.0398,96394.0,96388.0,0.002]
[1738971248802,0.2074564,96392.0,96388.0,0.002]
[1738971249395,0.0398,96394.0,96388.0,0.002]
[1738971249396,0.2074576,96391.0,96388.0,0.002]
[1738971250300,0.2074596,96390.0,96388.0,0.002]
[1738971250693,0.2074596,96390.0,96388.0,0.001]
[1738971250899,0.2074596,96390.0,96388.0,0.002]
[1738971251403,0.0398,96394.0,96388.0,0.002]
[1738971251696,0.2074617,96389.0,96388.0,0.002]
[1738971251886,0.2074617,96389.0,96388.0,0.001]
[1738971252206,0.2074617,96389.0,96388.0,0.002]
[1738971253494,0.0234063,96400.0,96388.0,0.001]
[1738971253697,0.14804057,96400.0,96388.0,0.001]
[1738971253999,0.14804057,96400.0,96388.0,0.002]
[1738971254393,0.2074505,96395.0,96388.0,0.002]
[1738971255293,0.13271378,96395.0,96388.0,0.002]
[1738971255504,0.2074511,96394.0,96388.0,0.002]
[1738971256095,0.14804057,96400.0,96388.0,0.002]
[1738971256304,0.2074617,96389.0,96388.0,0.002]
[1738971256505,0.207466,96387.0,96386.0,0.2066615]
[1738971256801,0.283706,96387.0,96386.0,0.2066615]
[1738971257804,0.283706,96387.0,96386.0,0.2076615]
[1738971258211,0.283706,96387.0,96386.0,0.2086615]
[1738971258910,0.207466,96387.0,96386.0,0.2086615]
[1738971259408,0.3608,96392.0,96386.0,0.2086615]
[1738971259598,0.207466,96387.0,96386.0,0.2086615]
[1738971260605,0.207466,96387.0,96386.0,0.002]
[1738971261405,0.002,96387.0,96386.0,0.002]
[1738971265211,0.002,96387.0,96386.0,0.01240602]
[1738971266201,0.209466,96387.0,96386.0,0.01240602]
[1738971267499,0.209466,96387.0,96386.0,0.002]
[1738971270915,0.570266,96387.0,96386.0,0.002]
[1738971271812,0.58075584,96387.0,96386.0,0.002]
[1738971274016,0.2074746,96383.0,96382.0,0.00015562]
[1738971274816,0.2075048,96369.0,96368.0,0.09249043]
[1738971275115,0.2075048,96369.0,96368.0,0.0821]
[1738971276817,0.2085048,96369.0,96368.0,0.0821]
[1738971277320,0.2075198,96362.0,96361.0,0.3076424]
[1738971279213,0.2075198,96362.0,96361.0,0.3106424]
[1738971279808,0.2075198,96362.0,96361.0,0.3126424]
[1738971281107,0.2075198,96362.0,96361.0,0.005]
[1738971284923,0.2075198,96362.0,96361.0,0.212522]
[1738971285916,0.00015562,96378.0,96367.0,0.2075073]
[1738971286518,0.1327378,96369.0,96367.0,0.2075073]
[1738971287120,0.1327378,96369.0,96367.0,0.2085073]
[1738971288219,0.00015562,96378.0,96367.0,0.2085073]
[1738971288421,0.2074947,96374.0,96367.0,0.2075073]
[1738971288618,0.2074947,96374.0,96367.0,0.2085073]
[1738971289026,0.2074982,96373.0,96367.0,0.2085073]
[1738971292432,0.2074982,96373.0,96367.0,0.001]
[1738971292626,0.2074982,96373.0,96368.0,0.2075054]
[1738971293737,0.2084982,96373.0,96368.0,0.2075054]
[1738971294550,0.001,96373.0,96370.0,0.2075023]
[1738971294745,0.001,96373.0,96371.0,0.0353]
[1738971295835,0.002,96373.0,96371.0,0.0353]
[1738971296248,0.001,96373.0,96371.0,0.0353]
[1738971296443,0.003,96373.0,96371.0,0.0353]
[1738971298039,0.207504,96370.0,96365.0,0.3608]
[1738971298255,0.2075058,96369.0,96365.0,0.3608]
[1738971298853,0.2075058,96369.0,96365.0,0.37104131]
[1738971299247,0.2075058,96369.0,96365.0,0.37204131]
[1738971302953,0.2075083,96368.0,96365.0,0.37204131]
[1738971303347,0.2075112,96366.0,96365.0,0.001]
[1738971303544,0.2075112,96366.0,96365.0,0.3086424]
[1738971303942,0.2438112,96366.0,96365.0,0.3086424]
[1738971306855,0.25436363,96366.0,96365.0,0.3086424]
[1738971307554,0.32886363,96366.0,96365.0,0.3086424]
[1738971307752,0.2075521,96347.0,96339.0,0.2075686]
[1738971307953,0.2075521,96347.0,96340.0,0.2075666]
[1738971308873,0.2075521,96347.0,96346.0,0.3678]
[1738971309054,0.2075521,96347.0,96346.0,0.3768]
[1738971309859,0.2075521,96347.0,96346.0,0.016]
[1738971311162,0.21785603,96347.0,96346.0,0.016]
[1738971311961,0.2075521,96347.0,96346.0,0.016]
[1738971312957,0.2075715,96338.0,96337.0,0.00015562]
[1738971314364,0.2075715,96338.0,96337.0,0.00915562]
[1738971314959,0.2085715,96338.0,96337.0,0.01115562]
[1738971315457,0.2075715,96338.0,96337.0,0.00215562]
[1738971315765,0.5683687,96340.0,96337.0,0.00215562]
[1738971316157,0.2075715,96338.0,96337.0,0.00215562]
[1738971316463,0.1376702,96338.0,96337.0,0.00215562]
[1738971317263,0.1376702,96338.0,96337.0,0.00015562]
[1738971319367,0.14819132,96338.0,96337.0,0.00015562]
[1738971319569,0.2075845,96332.0,96331.0,0.00155706]
[1738971320472,0.5683845,96332.0,96331.0,0.00155706]
[1738971321268,0.5683845,96332.0,96331.0,0.00455706]
[1738971321468,0.5683845,96332.0,96331.0,0.00655706]
[1738971322076,0.5683845,96332.0,96331.0,0.005]
[1738971338582,0.2076039,96323.0,96322.0,0.0001557]
[1738971338776,0.2837639,96323.0,96322.0,0.0001557]
[1738971339971,0.2837639,96323.0,96322.0,0.0051557]
[1738971340475,0.2847639,96323.0,96322.0,0.0131557]
[1738971341770,0.07716,96323.0,96301.0,0.0744]
[1738971341971,0.33226467,96311.0,96304.0,0.2076444]
[1738971343170,0.33326467,96311.0,96304.0,0.2166444]
[1738971343581,0.207637,96308.0,96304.0,0.2256444]
[1738971344581,0.2076387,96307.0,96304.0,0.2256444]
[1738971344779,0.2076413,96306.0,96304.0,0.2256444]
[1738971345186,0.2076413,96306.0,96304.0,0.2076444]
[1738971345383,0.2076413,96306.0,96304.0,0.2146444]
[1738971345683,0.2076427,96305.0,96304.0,0.2146444]
[1738971346384,0.13664362,96305.0,96304.0,0.2146444]
[1738971347081,0.13764362,96305.0,96304.0,0.2146444]
[1738971348271,0.13764362,96305.0,96304.0,0.2196444]
[1738971348272,0.13864362,96305.0,96304.0,0.2196444]
[1738971355989,0.002,96305.0,96304.0,0.2196444]
[1738971356384,0.28914072,96320.0,96304.0,0.012]
[1738971356691,0.36132001,96329.0,96328.0,0.2075931]
[1738971356889,0.3608,96329.0,96328.0,0.2075931]
[1738971357091,0.207589,96330.0,96329.0,0.2075909]
[1738971357985,0.0001557,96332.0,96331.0,0.2075866]
[1738971358293,0.36132001,96345.0,96344.0,0.2075586]
[1738971358487,0.3608,96345.0,96343.0,0.2075603]
[1738971358687,0.3608,96353.0,96350.0,0.2075449]
[1738971358891,0.3608,96353.0,96351.0,0.2075427]
[1738971359697,0.1549121,96354.0,96353.0,0.2075392]
[1738971360495,0.0363121,96354.0,96353.0,0.5683392]
[1738971360697,0.0363121,96354.0,96353.0,0.58436839]
[1738971361000,0.0433121,96354.0,96353.0,0.58536839]
[1738971361499,0.0433121,96354.0,96353.0,0.5693392]
[1738971361700,0.0513121,96354.0,96353.0,0.5703392]
[1738971362396,0.015,96354.0,96353.0,0.5703392]
[1738971363694,0.015,96354.0,96353.0,0.58071341]
[1738971363900,0.015,96354.0,96353.0,0.5703392]
[1738971364096,0.015,96354.0,96353.0,0.002]
[1738971369504,0.015,96354.0,96353.0,0.2095392]
[1738971370294,0.007,96354.0,96353.0,0.2085392]
[1738971370604,0.007,96354.0,96353.0,0.2125392]
[1738971370909,0.2075223,96361.0,96355.0,0.2075337]
[1738971371093,0.2075244,96360.0,96355.0,0.2075337]
[1738971371989,0.2075244,96360.0,96357.0,0.2075301]
[1738971372704,0.2075273,96359.0,96353.0,0.2095376]
[1738971372904,0.2075273,96359.0,96355.0,0.002]
[1738971373495,0.2075273,96359.0,96353.0,0.2075376]
[1738971374004,0.2075273,96359.0,96353.0,0.2085376]
[1738971374400,0.12759227,96359.0,96355.0,0.001]
[1738971374698,0.2075328,96356.0,96355.0,0.001]
[1738971376004,0.2076773,96362.0,96355.0,0.001]
[1738971376198,0.2076773,96362.0,96358.0,0.2075284]
[1738971376996,0.0001557,96362.0,96353.0,0.2095387]
[1738971377197,0.2075268,96359.0,96355.0,0.001]
[1738971377998,0.2075268,96359.0,96354.0,0.2075368]
[1738971379109,0.2075286,96358.0,96354.0,0.2075368]
[1738971379406,0.2075286,96358.0,96354.0,0.2085368]
[1738971379605,0.2075286,96358.0,96355.0,0.001]
[1738971379910,0.2075286,96358.0,96355.0,0.2085343]
[1738971380095,0.2075286,96358.0,96356.0,0.2075324]
[1738971380295,0.0001557,96362.0,96354.0,0.002]
[1738971380507,0.2075226,96361.0,96358.0,0.2075284]
[1738971381907,0.0001557,96362.0,96355.0,0.001]
[1738971382295,0.0001557,96362.0,96360.0,0.2075228]
[1738971382500,0.2075241,96361.0,96355.0,0.2085337]
[1738971382708,0.2085241,96361.0,96355.0,0.2075337]
[1738971383214,0.2075241,96361.0,96355.0,0.2075337]
[1738971383603,0.0021557,96362.0,96355.0,0.2075337]
[1738971383801,0.0715,96360.0,96355.0,0.2075337]
[1738971384205,0.0715,96360.0,96355.0,0.2095337]
[1738971384609,0.2075316,96357.0,96355.0,0.002]
[1738971385498,0.2075316,96357.0,96355.0,0.003]
[1738971387105,0.5683328,96356.0,96355.0,0.002]
[1738971387310,0.6443728,96356.0,96355.0,0.003]
[1738971387718,0.6443728,96356.0,96355.0,0.001]
[1738971387907,0.6443728,96356.0,96355.0,0.003]
[1738971389316,0.20755,96348.0,96347.0,0.24497532]
[1738971389813,0.2075543,96346.0,96344.0,0.01053035]
[1738971390014,0.2075543,96346.0,96342.0,0.2077184]
[1738971390218,0.2075543,96346.0,96343.0,0.22377891]
[1738971390419,0.2075543,96346.0,96343.0,0.2075606]
[1738971390920,0.2075543,96346.0,96344.0,0.001]
[1738971392819,0.2075543,96346.0,96344.0,0.2085578]
[1738971393016,0.2075543,96346.0,96344.0,0.2075578]
[1738971394119,0.2075543,96346.0,96345.0,0.01621781]
[1738971395108,0.2075543,96346.0,96344.0,0.2075578]
[1738971395420,0.2075543,96346.0,96345.0,0.0162178]
[1738971396223,0.2075543,96346.0,96345.0,0.0182178]
[1738971396829,0.2085543,96346.0,96345.0,0.0182178]
[1738971397122,0.2085543,96346.0,96345.0,0.0162178]
[1738971397424,0.2085543,96346.0,96345.0,0.01621778]
[1738971398519,0.001,96346.0,96345.0,0.22377428]
[1738971400120,0.002,96346.0,96345.0,0.22377428]
[1738971401234,0.002,96346.0,96345.0,0.01621778]
[1738971401613,0.2095543,96346.0,96345.0,0.01621778]
[1738971403528,0.2095543,96346.0,96342.0,0.010502]
[1738971403529,0.12924017,96346.0,96342.0,0.010502]
[1738971404128,0.2075578,96345.0,96342.0,0.010502]
[1738971405213,0.2075578,96345.0,96342.0,0.2180646]
[1738971405411,0.2075578,96345.0,96342.0,0.2190646]
[1738971406127,0.2075587,96344.0,96342.0,0.2180646]
[1738971406425,0.2075587,96344.0,96343.0,0.01620377]
[1738971406829,0.2075587,96344.0,96343.0,0.01620464]
[1738971407128,0.2075608,96343.0,96342.0,0.2190646]
[1738971407325,0.2075608,96343.0,96342.0,0.23527005]
[1738971407718,0.2075608,96343.0,96342.0,0.2352699]
[1738971408119,0.2075608,96343.0,96342.0,0.2342699]
[1738971408425,0.2075608,96343.0,96342.0,0.2352699]
[1738971409627,0.2075608,96343.0,96342.0,0.017361]
[1738971410130,0.2075608,96343.0,96342.0,0.0011557]
[1738971410721,0.2075608,96343.0,96342.0,0.01737464]
[1738971411120,0.2075608,96343.0,96342.0,0.0011557]
[1738971420538,0.3608,96354.0,96344.0,0.207557]
[1738971420741,0.2075564,96346.0,96342.0,0.0011557]
[1738971420930,0.2075564,96346.0,96343.0,0.01617647]
[1738971421130,0.2075564,96346.0,96344.0,0.01617647]
[1738971421340,0.2075565,96345.0,96342.0,0.0011557]
[1738971421531,0.2075565,96345.0,96343.0,0.01617581]
[1738971421838,0.44277625,96354.0,96342.0,0.0011557]
[1738971422137,0.2075551,96346.0,96344.0,0.2075586]
[1738971422739,0.2075551,96346.0,96342.0,0.0001557]
[1738971422940,0.2075551,96346.0,96343.0,0.0171233]
[1738971423130,0.2075551,96346.0,96344.0,0.0161233]
[1738971423325,0.2075551,96346.0,96345.0,0.0161233]
[1738971423624,0.2085551,96346.0,96345.0,0.0161233]
[1738971424238,0.2075551,96346.0,96343.0,0.001]
[1738971424441,0.2075551,96346.0,96344.0,0.01621801]
[1738971424639,0.2075551,96346.0,96345.0,0.01621801]
[1738971425831,0.2085551,96346.0,96345.0,0.01621801]
[1738971426736,0.2095551,96346.0,96345.0,0.01621801]
[1738971427035,0.002,96346.0,96345.0,0.01621801]
[1738971428538,0.002,96346.0,96344.0,0.2075573]
[1738971428845,0.002,96346.0,96345.0,0.0161239]
[1738971429139,0.002,96346.0,96344.0,0.21796667]
[1738971429544,0.001,96346.0,96345.0,0.0160004]
[1738971429730,0.2075488,96349.0,96345.0,0.0160004]
[1738971429936,0.2075488,96349.0,96344.0,0.21796667]
[1738971430941,0.2085488,96349.0,96344.0,0.21796667]
[1738971431543,0.2095488,96349.0,96344.0,0.21796667]
[1738971431848,0.002,96349.0,96348.0,0.56835]
[1738971432238,0.001,96349.0,96348.0,0.56835]
[1738971432435,0.08145624,96360.0,96348.0,0.3608]
[1738971432748,0.00052001,96367.0,96361.0,0.207522]
[1738971433043,0.3608,96388.0,96376.0,0.2074897]
[1738971433044,0.2074674,96387.0,96376.0,0.2074897]
[1738971433349,0.36291394,96377.0,96376.0,0.3608]
[1738971433639,0.2075046,96370.0,96367.0,0.2075089]
[1738971433841,0.2075091,96367.0,96366.0,0.37118714]
[1738971434243,0.2075091,96367.0,96366.0,0.3608]
[1738971434839,0.2135091,96367.0,96366.0,0.3608]
[1738971435441,0.2075091,96367.0,96366.0,0.3608]
[1738971435640,0.2115091,96367.0,96366.0,0.3608]
[1738971436349,0.004,96367.0,96366.0,0.5683112]
[1738971437547,0.007,96370.0,96366.0,0.3608]
[1738971437851,0.0001557,96378.0,96377.0,0.2074876]
[1738971438150,0.0001557,96378.0,96377.0,0.3608]
[1738971438347,0.2075091,96367.0,96366.0,0.3608]
[1738971439446,0.2075091,96367.0,96366.0,0.5683112]
[1738971440450,0.2095091,96367.0,96366.0,0.5683112]
[1738971442152,0.0001557,96378.0,96366.0,0.5683112]
[1738971442449,1e-08,96378.0,96377.0,0.5682875]
[1738971443554,0.00400001,96378.0,96377.0,0.5682875]
[1738971444343,0.00500001,96378.0,96377.0,0.5682875]
[1738971445146,0.00500001,96378.0,96377.0,0.5692875]
[1738971445147,0.01000001,96378.0,96377.0,0.5692875]
[1738971447152,0.01000001,96378.0,96377.0,0.57988124]
[1738971449657,0.01000001,96378.0,96377.0,0.87988124]
[1738971449956,0.2074567,96392.0,96377.0,0.42426534]
[1738971450154,0.2074567,96392.0,96391.0,0.3608]
[1738971451361,0.2074567,96392.0,96386.0,0.2074663]
[1738971451362,0.2074661,96387.0,96386.0,0.2074663]
[1738971453154,0.2164568,96392.0,96391.0,0.2074574]
[1738971453347,0.2164568,96392.0,96391.0,0.2084574]
[1738971453853,0.2164568,96392.0,96391.0,0.2074574]
[1738971454056,0.2074568,96392.0,96391.0,0.2074574]
[1738971454760,0.2074568,96392.0,96391.0,0.2084574]
[1738971454962,0.2074568,96392.0,96391.0,0.001]
[1738971455562,0.2114568,96392.0,96391.0,0.002]
[1738971464266,0.5722568,96392.0,96391.0,0.002]
[1738971465470,0.49274652,96392.0,96391.0,0.002]
[1738971468071,0.004,96392.0,96391.0,0.002]
[1738971468274,0.004,96392.0,96391.0,0.2094574]
[1738971478778,0.0234063,96400.0,96391.0,0.04604886]
[1738971478979,0.0234063,96400.0,96399.0,0.5682402]
[1738971479688,0.18581048,96430.0,96399.0,0.7366]
[1738971479980,0.15527702,96426.0,96425.0,0.2073843]
[1738971480170,0.15527702,96426.0,96425.0,0.5681843]
[1738971480871,0.15527702,96426.0,96416.0,0.00015562]
[1738971481070,0.2074012,96418.0,96416.0,0.00015562]
[1738971483276,0.2094012,96418.0,96416.0,0.00015562]
[1738971484483,0.2074209,96408.0,96407.0,0.30753867]
[1738971485184,0.5682209,96408.0,96407.0,0.30753867]
[1738971485982,0.3608,96408.0,96398.0,0.00015562]
[1738971486283,0.2074345,96402.0,96398.0,0.00015562]
[1738971486484,0.207437,96401.0,96398.0,0.00015562]
[1738971486784,0.2074387,96400.0,96398.0,0.00015562]
[1738971487778,0.0352,96399.0,96398.0,0.00115562]
[1738971490287,0.0685,96399.0,96398.0,0.00115562]
[1738971490588,0.2759402,96399.0,96398.0,0.00115562]
[1738971490976,0.4293,96399.0,96387.0,0.30753867]
[1738971491180,0.4293,96399.0,96360.0,0.38355985]
[1738971491181,0.2074768,96382.0,96360.0,0.38355985]
[1738971491374,0.6440368,96382.0,96381.0,0.18886716]
[1738971491582,0.43656,96382.0,96380.0,0.18886716]
[1738971491781,0.241479,96381.0,96380.0,0.18886716]
[1738971493581,0.241479,96381.0,96380.0,0.18986716]
[1738971494384,0.2520504,96381.0,96380.0,0.18986716]
[1738971495584,0.17656313,96381.0,96380.0,0.001]
[1738971498587,0.20996313,96381.0,96380.0,0.001]
[1738971498786,0.24326313,96381.0,96380.0,0.001]
[1738971505502,0.25228313,96381.0,96380.0,0.001]
[1738971507902,0.16599173,96381.0,96380.0,0.001]
[1738971508088,0.24171173,96381.0,96380.0,0.001]
[1738971508602,0.36132001,96382.0,96380.0,0.001]
[1738971508801,0.3608,96382.0,96380.0,0.001]
[1738971509297,0.07572,96385.0,96380.0,0.001]
[1738971510188,0.00015562,96390.0,96380.0,0.001]
[1738971510189,0.12422293,96390.0,96385.0,0.2074689]
[1738971510388,0.12422293,96390.0,96386.0,0.0368]
[1738971511404,0.207464,96388.0,96386.0,0.0368]
[1738971512301,0.12422293,96390.0,96386.0,0.0368]
[1738971512805,0.33168273,96390.0,96386.0,0.0368]
[1738971513504,0.2074635,96389.0,96386.0,0.0368]
[1738971514806,0.12422293,96390.0,96386.0,0.0378]
[1738971515606,0.12422293,96390.0,96388.0,0.2074637]
[1738971515799,0.00015562,96390.0,96388.0,0.2074637]
[1738971517604,0.00015562,96390.0,96386.0,0.0368]
[1738971518704,0.00015562,96390.0,96386.0,0.0378]
[1738971519501,0.2074643,96388.0,96386.0,0.0398]
[1738971519904,0.207466,96387.0,96386.0,0.003]
[1738971521013,0.207466,96387.0,96386.0,0.001]
[1738971521814,0.0337,96389.0,96386.0,0.002]
[1738971522013,0.207466,96387.0,96386.0,0.002]
[1738971522713,0.2074758,96383.0,96379.0,0.2074824]
[1738971523313,0.2074774,96382.0,96379.0,0.2074824]
[1738971524311,0.0337,96389.0,96379.0,0.2074824]
[1738971524516,0.20748,96381.0,96379.0,0.2074824]
[1738971524811,0.20748,96381.0,96380.0,0.2074811]
[1738971525817,0.20748,96381.0,96380.0,0.2084811]
[1738971526314,0.0337,96389.0,96379.0,0.003]
[1738971526519,0.2074789,96381.0,96380.0,0.001]
[1738971527818,0.2074789,96381.0,96380.0,0.002]
[1738971528018,0.2074789,96381.0,96380.0,0.001]
[1738971528620,0.2074864,96378.0,96376.0,0.2074886]
[1738971529811,0.2074864,96378.0,96376.0,0.2084886]
[1738971531315,0.2074864,96378.0,96377.0,0.2074875]
[1738971533222,0.2074864,96378.0,96377.0,0.2084875]
[1738971533422,0.2074864,96378.0,96377.0,0.2114875]
[1738971534223,0.2074662,96387.0,96381.0,0.2074784]
[1738971534420,0.2074768,96382.0,96381.0,0.2074784]
[1738971536618,0.035,96388.0,96377.0,0.003]
[1738971536814,0.2074681,96387.0,96382.0,0.2074759]
[1738971538012,0.2074681,96387.0,96382.0,0.2084759]
[1738971538422,0.2074685,96386.0,96382.0,0.2084759]
[1738971538820,0.2074685,96386.0,96382.0,0.2074759]
[1738971539018,0.2074685,96386.0,96382.0,0.2094759]
[1738971541932,0.035,96388.0,96385.0,0.2074688]
[1738971542133,0.0337,96389.0,96385.0,0.2074688]
[1738971542323,0.241162,96389.0,96385.0,0.2074688]
[1738971542524,0.0337,96389.0,96388.0,0.2074639]
[1738971543930,0.00015562,96390.0,96389.0,0.2074617]
[1738971547033,0.00115562,96390.0,96389.0,0.2074617]
[1738971548122,0.0363,96411.0,96389.0,0.3608]
[1738971548325,0.2074167,96410.0,96408.0,0.2074206]
[1738971548624,0.2074187,96409.0,96408.0,0.2074206]
[1738971548825,0.2074231,96407.0,96403.0,0.3608]
[1738971549024,0.2074231,96407.0,96404.0,0.207429]
[1738971549632,0.0363,96411.0,96403.0,0.37109756]
[1738971549824,0.0363,96411.0,96405.0,0.2074255]
[1738971550332,0.0373,96411.0,96405.0,0.2074255]
[1738971550533,0.0373,96411.0,96408.0,0.001]
[1738971551126,0.0453,96411.0,96406.0,0.2074239]
[1738971551336,0.0453,96411.0,96405.0,0.002]
[1738971551526,0.0453,96411.0,96409.0,0.2074178]
[1738971551934,0.0443,96411.0,96409.0,0.2074178]
[1738971552939,0.0443,96411.0,96408.0,0.002]
[1738971553437,0.16902988,96412.0,96408.0,0.001]
[1738971553636,0.36132001,96414.0,96410.0,0.2074157]
[1738971553840,0.009,96411.0,96410.0,0.2074157]
[1738971554639,0.009,96412.0,96411.0,0.207413]
[1738971555343,0.00015562,96415.0,96412.0,0.2074105]
[1738971555729,0.00015562,96415.0,96414.0,0.2074079]
[1738971557143,0.00015562,96415.0,96414.0,0.2084079]
[1738971557733,0.00015562,96415.0,96414.0,0.2094079]
[1738971560850,0.20756132,96415.0,96414.0,0.2094079]
[1738971571556,0.20756132,96415.0,96414.0,0.002]
[1738971573056,0.20756132,96415.0,96414.0,0.2094079]
[1738971578257,0.00015562,96415.0,96414.0,0.2094079]
[1738971581756,0.20756142,96415.0,96414.0,0.2094079]
[1738971584360,0.20756142,96415.0,96414.0,0.002]
[1738971585564,0.12521386,96415.0,96414.0,0.002]
[1738971586761,0.13542804,96415.0,96414.0,0.002]
[1738971596066,0.49622804,96415.0,96414.0,0.002]
[1738971610682,0.2074445,96397.0,96391.0,0.0334]
[1738971610882,0.2074445,96397.0,96395.0,0.01050265]
[1738971611780,0.2084445,96397.0,96395.0,0.01050265]
[1738971611972,0.2084445,96397.0,96391.0,0.0334]
[1738971613082,0.2084445,96397.0,96367.0,0.48225595]
[1738971613390,0.2084445,96397.0,96379.0,0.0737]
[1738971613684,0.2084445,96397.0,96384.0,0.01050577]
[1738971614584,0.13105742,96397.0,96384.0,0.01050577]
[1738971617784,0.20649742,96397.0,96384.0,0.01050577]
[1738971618083,0.56729742,96397.0,96384.0,0.01050577]
[1738971618889,0.56729742,96397.0,96380.0,0.2074795]
[1738971619781,0.43724,96397.0,96379.0,0.0737]
[1738971619983,0.2074811,96380.0,96379.0,0.0737]
[1738971620890,0.2074811,96380.0,96379.0,0.0777]
[1738971621294,0.2074811,96380.0,96379.0,0.0787]
[1738971623693,0.2074811,96380.0,96379.0,0.2861832]
[1738971626483,0.2074811,96380.0,96379.0,0.0787]
[1738971640601,0.2074811,96380.0,96379.0,0.005]
[1738971643504,0.13012242,96380.0,96379.0,0.005]
[1738971648922,0.49092242,96380.0,96379.0,0.005]
[1738971659125,0.2074854,96378.0,96377.0,0.00155634]
[1738971659710,0.2074854,96378.0,96370.0,0.00015562]
[1738971659711,0.3608,96380.0,96370.0,0.00015562]
[1738971659921,0.5683004,96371.0,96370.0,0.00015562]
[1738971661529,0.5683004,96371.0,96370.0,0.00415562]
[1738971663023,0.5693004,96371.0,96370.0,0.01115562]
[1738971664316,0.57943984,96371.0,96370.0,0.01115562]
[1738971670623,0.2075319,96357.0,96352.0,0.0392]
[1738971671124,0.2075329,96356.0,96352.0,0.0392]
[1738971671428,0.16268432,96362.0,96352.0,0.0392]
[1738971671629,0.2075333,96356.0,96352.0,0.0392]
[1738971672135,0.2075333,96356.0,96352.0,0.0572]
[1738971672525,0.2075389,96354.0,96352.0,0.0572]
[1738971672725,0.5683389,96354.0,96352.0,0.0572]
[1738971673934,0.2075392,96353.0,96352.0,0.0572]
[1738971675334,0.13556166,96353.0,96352.0,0.0572]
[1738971675531,0.13556166,96353.0,96352.0,0.0482]
[1738971675837,0.13756166,96353.0,96352.0,0.0572]
[1738971680527,0.49836166,96353.0,96352.0,0.0572]
[1738971682136,0.49836166,96353.0,96352.0,0.018]
[1738971684336,0.13756166,96353.0,96352.0,0.018]
[1738971684639,0.49836166,96353.0,96352.0,0.018]
[1738971691241,0.13756166,96353.0,96352.0,0.018]
[1738971702440,0.002,96353.0,96352.0,0.018]
[1738971703455,0.15654216,96370.0,96360.0,0.2075232]
[1738971703643,0.08134216,96370.0,96363.0,0.3608]
[1738971704544,0.15527702,96373.0,96363.0,0.568317]
[1738971704753,0.23661918,96373.0,96363.0,0.568317]
[1738971704952,0.23661918,96373.0,96363.0,0.575317]
[1738971705152,0.00115562,96367.0,96363.0,0.575317]
[1738971705351,0.00115562,96367.0,96365.0,0.2075128]
[1738971706747,0.00015562,96367.0,96365.0,0.2075128]
[1738971706952,0.00115562,96367.0,96365.0,0.2075128]
[1738971707660,0.00115562,96367.0,96365.0,0.2165128]
[1738971707859,0.00115562,96367.0,96365.0,0.2225128]
[1738971716868,0.00115562,96367.0,96365.0,0.015]
[1738971717049,0.00115562,96367.0,96366.0,0.2075112]
[1738971717864,0.2074738,96384.0,96379.0,0.2074828]
[1738971718063,0.2074747,96383.0,96380.0,0.2074809]
[1738971720056,0.08134216,96389.0,96380.0,0.2094809]
[1738971721263,0.207468,96387.0,96380.0,0.2094809]
[1738971725363,0.08134216,96389.0,96383.0,0.2074743]
[1738971726458,0.08134216,96389.0,96383.0,0.2084743]
[1738971726654,0.08134216,96389.0,96383.0,0.001]
[1738971726965,0.00052001,96390.0,96389.0,0.2074617]
[1738971727170,0.00015562,96391.0,96389.0,0.2074617]
[1738971728568,0.00315562,96391.0,96389.0,0.2074617]
[1738971728976,0.00155662,96400.0,96390.0,0.01620874]
[1738971729263,0.00155662,96400.0,96395.0,0.3608]
[1738971729462,0.00155662,96400.0,96396.0,0.01620874]
[1738971729662,0.00155662,96400.0,96395.0,0.3608]
[1738971730163,0.00155662,96400.0,96399.0,0.2074402]
[1738971730366,0.00455662,96400.0,96399.0,0.2074402]
[1738971730565,0.00955662,96400.0,96399.0,0.2074402]
[1738971730762,0.00655662,96400.0,96399.0,0.2074402]
[1738971730958,0.01055662,96400.0,96399.0,0.2074402]
[1738971731353,0.01055662,96400.0,96399.0,0.45272092]
[1738971731970,0.00555662,96400.0,96399.0,0.45272092]
[1738971732162,0.01255662,96400.0,96399.0,0.45372092]
[1738971732562,0.01939819,96408.0,96402.0,0.2074324]
[1738971732765,0.01939819,96408.0,96403.0,0.2074304]
[1738971734063,0.01939819,96408.0,96403.0,0.2084304]
[1738971735059,0.01939819,96408.0,96404.0,0.2074277]
[1738971735372,0.01939819,96408.0,96405.0,0.2074258]
[1738971736973,0.01939819,96408.0,96399.0,0.24528072]
[1738971737172,0.01939819,96408.0,96406.0,0.207423]
[1738971738268,0.01939819,96408.0,96406.0,0.208423]
[1738971739072,0.0383,96418.0,96409.0,0.2074176]
[1738971740478,0.0383,96418.0,96409.0,0.2084176]
[1738971740978,0.09135878,96411.0,96409.0,0.2094176]
[1738971744085,0.09135878,96411.0,96410.0,0.2074165]
[1738971745571,0.09135878,96411.0,96410.0,0.2084165]